[Event "Titled Tuesday Blitz December 20 Early 2022"]
[White "vladoboch"]
[Black "davidkalashian"]
[WhiteElo "2445"]
[BlackElo "2707"]
[Result "1-0"]
[Round "03"]
[TimeControl "180+2"]
[Date "2022.12.20"]
[WhiteClock "0:00:12"]
[BlackClock "0:00:20"]

1. e4 {[%clk 0:02:57]}  c6 {[%clk 0:02:59]} 2. d4 {[%clk 0:02:56]}  g6 {[%clk 0:03:00]} 3. e5 {[%clk 0:02:57]}  Bg7 {[%clk 0:03:00]} 4. Be3 {[%clk 0:02:49]}  d6 {[%clk 0:02:56]} 5. exd6 {[%clk 0:02:46]}  Qxd6 {[%clk 0:02:55]} 6. h3 {[%clk 0:02:41]}  Nf6 {[%clk 0:02:52]} 7. c3 {[%clk 0:02:31]}  O-O {[%clk 0:02:51]} 8. Nf3 {[%clk 0:02:31]}  Nbd7 {[%clk 0:02:51]} 9. Nbd2 {[%clk 0:02:28]}  Qc7 {[%clk 0:02:49]} 10. Be2 {[%clk 0:02:24]}  e5 {[%clk 0:02:48]} 11. dxe5 {[%clk 0:02:21]}  Nxe5 {[%clk 0:02:49]} 12. Nxe5 {[%clk 0:02:20]}  Qxe5 {[%clk 0:02:50]} 13. Nf3 {[%clk 0:02:20]}  Qe7 {[%clk 0:02:49]} 14. O-O {[%clk 0:02:19]}  Nd5 {[%clk 0:02:49]} 15. Bd4 {[%clk 0:02:13]}  Be6 {[%clk 0:02:43]} 16. Re1 {[%clk 0:02:06]}  Rad8 {[%clk 0:02:39]} 17. Qa4 {[%clk 0:01:57]}  a6 {[%clk 0:02:36]} 18. Bxg7 {[%clk 0:01:48]}  Kxg7 {[%clk 0:02:35]} 19. Nd4 {[%clk 0:01:47]}  Bc8 {[%clk 0:02:34]} 20. Bxa6 {[%clk 0:01:39]}  Qg5 {[%clk 0:02:22]} 21. Nf3 {[%clk 0:01:28]}  Qf6 {[%clk 0:02:18]} 22. Bf1 {[%clk 0:01:25]}  Bxh3 {[%clk 0:02:16]} 23. Qd4 {[%clk 0:01:17]}  Bc8 {[%clk 0:02:13]} 24. Qxf6+ {[%clk 0:01:14]}  Kxf6 {[%clk 0:02:14]} 25. a4 {[%clk 0:01:13]}  Rfe8 {[%clk 0:02:13]} 26. a5 {[%clk 0:01:09]}  Rxe1 {[%clk 0:02:12]} 27. Rxe1 {[%clk 0:01:09]}  Nc7 {[%clk 0:02:11]} 28. b4 {[%clk 0:01:06]}  Nd5 {[%clk 0:02:05]} 29. Rc1 {[%clk 0:01:01]}  h5 {[%clk 0:02:02]} 30. Bc4 {[%clk 0:00:54]}  Nf4 {[%clk 0:01:56]} 31. g3 {[%clk 0:00:44]}  Be6 {[%clk 0:01:54]} 32. Bf1 {[%clk 0:00:34]}  Nd5 {[%clk 0:01:53]} 33. Nd4 {[%clk 0:00:30]}  Bc8 {[%clk 0:01:50]} 34. a6 {[%clk 0:00:26]}  bxa6 {[%clk 0:01:46]} 35. Nxc6 {[%clk 0:00:25]}  Rd6 {[%clk 0:01:46]} 36. Nd4 {[%clk 0:00:20]}  Bb7 {[%clk 0:01:38]} 37. Nb3 {[%clk 0:00:20]}  Bc8 {[%clk 0:01:32]} 38. Nc5 {[%clk 0:00:20]}  g5 {[%clk 0:01:29]} 39. Rd1 {[%clk 0:00:20]}  Ke7 {[%clk 0:01:19]} 40. Ne4 {[%clk 0:00:15]}  Rd8 {[%clk 0:00:49]} 41. Bc4 {[%clk 0:00:14]}  Be6 {[%clk 0:00:42]} 42. Nxg5 {[%clk 0:00:12]}  Nxc3 {[%clk 0:00:30]} 43. Rxd8 {[%clk 0:00:11]}  Kxd8 {[%clk 0:00:29]} 44. Bxe6 {[%clk 0:00:10]}  fxe6 {[%clk 0:00:27]} 45. Nxe6+ {[%clk 0:00:11]}  Kc8 {[%clk 0:00:26]} 46. Nc5 {[%clk 0:00:11]}  Nd5 {[%clk 0:00:22]} 47. Nxa6 {[%clk 0:00:11]}  Kb7 {[%clk 0:00:22]} 48. Nc5+ {[%clk 0:00:11]}  Kc6 {[%clk 0:00:23]} 49. Nd3 {[%clk 0:00:12]}  Ne7 {[%clk 0:00:22]} 50. Kg2 {[%clk 0:00:12]}  Ng6 {[%clk 0:00:21]} 51. f4 {[%clk 0:00:12]}  h4 {[%clk 0:00:19]} 52. Ne5+ {[%clk 0:00:12]}  Nxe5 {[%clk 0:00:18]} 53. fxe5 {[%clk 0:00:12]}  hxg3 {[%clk 0:00:19]} 54. Kxg3 {[%clk 0:00:12]}  Kd5 {[%clk 0:00:20]} 55. Kf4 {[%clk 0:00:12]} 1-0


[Site "https://www.chess.com"]

[Event "Titled Tuesday Blitz December 20 Early 2022"]
[White "Aishath, Aika"]
[Black "Kirillov-Dmitry"]
[WhiteFideId "16702026"]
[WhiteElo "2770"]
[BlackElo "2444"]
[Result "1-0"]
[Round "04"]
[TimeControl "180+2"]
[Date "2022.12.20"]
[WhiteClock "0:00:13"]
[BlackClock "0:00:05"]

1. d4 {[%clk 0:03:00]}  d5 {[%clk 0:02:59]} 2. c4 {[%clk 0:03:01]}  e6 {[%clk 0:03:00]} 3. Nc3 {[%clk 0:03:00]}  c6 {[%clk 0:02:59]} 4. Nf3 {[%clk 0:02:59]}  dxc4 {[%clk 0:02:59]} 5. a4 {[%clk 0:02:59]}  Bb4 {[%clk 0:02:58]} 6. e3 {[%clk 0:02:59]}  b5 {[%clk 0:02:59]} 7. Bd2 {[%clk 0:02:59]}  a5 {[%clk 0:02:59]} 8. axb5 {[%clk 0:02:58]}  Bxc3 {[%clk 0:02:59]} 9. Bxc3 {[%clk 0:02:59]}  cxb5 {[%clk 0:03:00]} 10. b3 {[%clk 0:02:59]}  Bb7 {[%clk 0:03:00]} 11. bxc4 {[%clk 0:02:59]}  b4 {[%clk 0:03:01]} 12. Bb2 {[%clk 0:03:00]}  Nf6 {[%clk 0:03:01]} 13. Bd3 {[%clk 0:03:00]}  Nbd7 {[%clk 0:03:02]} 14. O-O {[%clk 0:03:01]}  O-O {[%clk 0:03:03]} 15. Nd2 {[%clk 0:03:01]}  Qc7 {[%clk 0:03:03]} 16. Bc2 {[%clk 0:02:51]}  e5 {[%clk 0:02:55]} 17. d5 {[%clk 0:02:26]}  Nc5 {[%clk 0:02:39]} 18. f4 {[%clk 0:02:25]}  Nfd7 {[%clk 0:01:52]} 19. fxe5 {[%clk 0:02:25]}  g6 {[%clk 0:01:46]} 20. Nf3 {[%clk 0:02:16]}  a4 {[%clk 0:01:39]} 21. Bxa4 {[%clk 0:01:48]}  Nxa4 {[%clk 0:01:40]} 22. Rxa4 {[%clk 0:01:48]}  Qxc4 {[%clk 0:01:39]} 23. Rxa8 {[%clk 0:01:45]}  Bxa8 {[%clk 0:01:34]} 24. e6 {[%clk 0:01:35]}  fxe6 {[%clk 0:01:33]} 25. dxe6 {[%clk 0:01:35]}  Qxe6 {[%clk 0:01:33]} 26. Qd4 {[%clk 0:01:33]}  Qf6 {[%clk 0:01:31]} 27. Qxb4 {[%clk 0:01:24]}  Qf5 {[%clk 0:01:30]} 28. Qd4 {[%clk 0:01:17]}  Qf6 {[%clk 0:01:28]} 29. Qc4+ {[%clk 0:01:07]}  Qf7 {[%clk 0:01:27]} 30. Qd3 {[%clk 0:01:02]}  Qe6 {[%clk 0:01:15]} 31. Bd4 {[%clk 0:00:23]}  Be4 {[%clk 0:01:10]} 32. Qe2 {[%clk 0:00:22]}  Qd5 {[%clk 0:01:02]} 33. Nd2 {[%clk 0:00:18]}  Bf5 {[%clk 0:00:58]} 34. h3 {[%clk 0:00:13]}  h5 {[%clk 0:00:57]} 35. Qa6 {[%clk 0:00:12]}  Ra8 {[%clk 0:00:53]} 36. Qe2 {[%clk 0:00:09]}  Ra3 {[%clk 0:00:46]} 37. Qf3 {[%clk 0:00:06]}  Qxf3 {[%clk 0:00:44]} 38. Nxf3 {[%clk 0:00:07]}  Ra2 {[%clk 0:00:36]} 39. Rc1 {[%clk 0:00:06]}  Nf8 {[%clk 0:00:29]} 40. Ng5 {[%clk 0:00:06]}  Rc2 {[%clk 0:00:19]} 41. Ra1 {[%clk 0:00:04]}  Nh7 {[%clk 0:00:20]} 42. Ra8+ {[%clk 0:00:02]}  Rc8 {[%clk 0:00:19]} 43. Rxc8+ {[%clk 0:00:02]}  Bxc8 {[%clk 0:00:20]} 44. Ne4 {[%clk 0:00:03]}  Bb7 {[%clk 0:00:18]} 45. Nc5 {[%clk 0:00:03]}  Bc6 {[%clk 0:00:17]} 46. Kf2 {[%clk 0:00:04]}  Kf7 {[%clk 0:00:16]} 47. e4 {[%clk 0:00:04]}  Nf8 {[%clk 0:00:17]} 48. Ke3 {[%clk 0:00:05]}  Ne6 {[%clk 0:00:17]} 49. Nd3 {[%clk 0:00:03]}  Ba8 {[%clk 0:00:11]} 50. Ne5+ {[%clk 0:00:03]}  Kg7 {[%clk 0:00:12]} 51. g3 {[%clk 0:00:03]}  g5 {[%clk 0:00:05]} 52. Nf3+ {[%clk 0:00:02]}  Kg6 {[%clk 0:00:05]} 53. Ne5+ {[%clk 0:00:02]}  Kg7 {[%clk 0:00:05]} 54. Nd3+ {[%clk 0:00:02]}  Kg6 {[%clk 0:00:06]} 55. Bc3 {[%clk 0:00:03]}  Bb7 {[%clk 0:00:04]} 56. Ne5+ {[%clk 0:00:03]}  Kg7 {[%clk 0:00:04]} 57. Nd7+ {[%clk 0:00:03]}  Kg6 {[%clk 0:00:05]} 58. Ne5+ {[%clk 0:00:02]}  Kg7 {[%clk 0:00:05]} 59. h4 {[%clk 0:00:03]}  g4 {[%clk 0:00:05]} 60. Nxg4+ {[%clk 0:00:03]}  Kh7 {[%clk 0:00:05]} 61. Ne5 {[%clk 0:00:04]}  Ng7 {[%clk 0:00:05]} 62. Nf3 {[%clk 0:00:04]}  Kg6 {[%clk 0:00:05]} 63. Ng5 {[%clk 0:00:05]}  Ne8 {[%clk 0:00:05]} 64. Nh3 {[%clk 0:00:05]}  Nd6 {[%clk 0:00:05]} 65. Nf4+ {[%clk 0:00:06]}  Kh6 {[%clk 0:00:05]} 66. e5 {[%clk 0:00:06]}  Nf5+ {[%clk 0:00:06]} 67. Kf2 {[%clk 0:00:06]}  Bc8 {[%clk 0:00:03]} 68. e6 {[%clk 0:00:06]}  Nd6 {[%clk 0:00:02]} 69. Ke3 {[%clk 0:00:05]}  Nf5+ {[%clk 0:00:02]} 70. Kf2 {[%clk 0:00:05]}  Nd6 {[%clk 0:00:01]} 71. Be5 {[%clk 0:00:04]}  Ne4+ {[%clk 0:00:02]} 72. Kg2 {[%clk 0:00:04]}  Nc5 {[%clk 0:00:03]} 73. Bd6 {[%clk 0:00:03]}  Nxe6 {[%clk 0:00:02]} 74. Nd3 {[%clk 0:00:03]}  Ng7 {[%clk 0:00:03]} 75. Bf4+ {[%clk 0:00:03]}  Kh7 {[%clk 0:00:03]} 76. Ne5 {[%clk 0:00:03]}  Nf5 {[%clk 0:00:04]} 77. Kf2 {[%clk 0:00:03]}  Nd4 {[%clk 0:00:04]} 78. Nf3 {[%clk 0:00:04]}  Nf5 {[%clk 0:00:05]} 79. Ng5+ {[%clk 0:00:04]}  Kg6 {[%clk 0:00:06]} 80. Ne4 {[%clk 0:00:05]}  Nd4 {[%clk 0:00:06]} 81. Nd2 {[%clk 0:00:06]}  Nf5 {[%clk 0:00:06]} 82. Nf3 {[%clk 0:00:06]}  Bb7 {[%clk 0:00:06]} 83. Ne5+ {[%clk 0:00:07]}  Kf6 {[%clk 0:00:07]} 84. Nd3 {[%clk 0:00:07]}  Be4 {[%clk 0:00:07]} 85. Bg5+ {[%clk 0:00:08]}  Kg6 {[%clk 0:00:06]} 86. Nf4+ {[%clk 0:00:09]}  Kg7 {[%clk 0:00:06]} 87. Nxh5+ {[%clk 0:00:09]}  Kg6 {[%clk 0:00:06]} 88. Nf4+ {[%clk 0:00:10]}  Kf7 {[%clk 0:00:06]} 89. h5 {[%clk 0:00:11]}  Bb1 {[%clk 0:00:04]} 90. g4 {[%clk 0:00:11]}  Ng7 {[%clk 0:00:04]} 91. Kg3 {[%clk 0:00:11]}  Ne6 {[%clk 0:00:05]} 92. Bh6 {[%clk 0:00:11]}  Nd4 {[%clk 0:00:03]} 93. Bg5 {[%clk 0:00:09]}  Nf5+ {[%clk 0:00:03]} 94. gxf5 {[%clk 0:00:09]}  Bxf5 {[%clk 0:00:04]} 95. Kh4 {[%clk 0:00:10]}  Kg7 {[%clk 0:00:05]} 96. h6+ {[%clk 0:00:10]}  Kh7 {[%clk 0:00:05]} 97. Nh5 {[%clk 0:00:10]}  Kg6 {[%clk 0:00:04]} 98. Ng3 {[%clk 0:00:10]}  Bb1 {[%clk 0:00:03]} 99. Kg4 {[%clk 0:00:10]}  Bc2 {[%clk 0:00:04]} 100. Kf4 {[%clk 0:00:09]}  Bb1 {[%clk 0:00:05]} 101. Ne2 {[%clk 0:00:09]}  Bd3 {[%clk 0:00:04]} 102. Nd4 {[%clk 0:00:10]}  Bb1 {[%clk 0:00:04]} 103. Nf3 {[%clk 0:00:10]}  Bc2 {[%clk 0:00:04]} 104. Ne5+ {[%clk 0:00:11]}  Kh7 {[%clk 0:00:04]} 105. Ng4 {[%clk 0:00:11]}  Kg6 {[%clk 0:00:04]} 106. Bf6 {[%clk 0:00:11]}  Kh7 {[%clk 0:00:04]} 107. Bg7 {[%clk 0:00:11]}  Kg6 {[%clk 0:00:04]} 108. Ne5+ {[%clk 0:00:11]}  Kh7 {[%clk 0:00:05]} 109. Kg5 {[%clk 0:00:12]}  Bb1 {[%clk 0:00:05]} 110. Ng4 {[%clk 0:00:12]}  Bc2 {[%clk 0:00:05]} 111. Nf6# {[%clk 0:00:13]} 1-0


[Site "https://www.chess.com"]

[Event "Titled Tuesday Blitz December 20 Early 2022"]
[White "Al-Kailani, Zaid"]
[Black "Pranav, V"]
[WhiteFideId "8100187"]
[BlackFideId "25060783"]
[WhiteElo "2053"]
[BlackElo "2597"]
[Result "0-1"]
[Round "04"]
[TimeControl "180+2"]
[Date "2022.12.20"]
[WhiteClock "0:00:09"]
[BlackClock "0:00:07"]

1. e4 {[%clk 0:03:00]}  c5 {[%clk 0:02:59]} 2. Nf3 {[%clk 0:03:01]}  d6 {[%clk 0:02:59]} 3. d4 {[%clk 0:03:01]}  cxd4 {[%clk 0:02:59]} 4. Nxd4 {[%clk 0:03:02]}  Nf6 {[%clk 0:02:59]} 5. Nc3 {[%clk 0:03:02]}  a6 {[%clk 0:03:00]} 6. h3 {[%clk 0:03:02]}  e5 {[%clk 0:02:58]} 7. Nde2 {[%clk 0:03:02]}  Be6 {[%clk 0:02:58]} 8. g4 {[%clk 0:03:01]}  Be7 {[%clk 0:02:58]} 9. Bg2 {[%clk 0:02:58]}  h6 {[%clk 0:02:57]} 10. Be3 {[%clk 0:02:52]}  Nbd7 {[%clk 0:02:56]} 11. Ng3 {[%clk 0:02:43]}  Rc8 {[%clk 0:02:49]} 12. Nf5 {[%clk 0:02:42]}  Bxf5 {[%clk 0:02:44]} 13. exf5 {[%clk 0:02:43]}  Qc7 {[%clk 0:02:34]} 14. h4 {[%clk 0:02:38]}  Nb6 {[%clk 0:02:10]} 15. g5 {[%clk 0:02:35]}  hxg5 {[%clk 0:02:06]} 16. hxg5 {[%clk 0:02:36]}  Rxh1+ {[%clk 0:02:05]} 17. Bxh1 {[%clk 0:02:37]}  Nfd7 {[%clk 0:02:06]} 18. Qh5 {[%clk 0:02:35]}  d5 {[%clk 0:01:53]} 19. Nxd5 {[%clk 0:02:20]}  Nxd5 {[%clk 0:01:52]} 20. Bxd5 {[%clk 0:01:49]}  Qa5+ {[%clk 0:01:51]} 21. c3 {[%clk 0:01:47]}  Qxd5 {[%clk 0:01:52]} 22. Rd1 {[%clk 0:01:46]}  Qc6 {[%clk 0:01:47]} 23. g6 {[%clk 0:01:43]}  fxg6 {[%clk 0:01:42]} 24. fxg6 {[%clk 0:01:44]}  Nf8 {[%clk 0:01:35]} 25. Qxe5 {[%clk 0:01:33]}  Qxg6 {[%clk 0:01:31]} 26. Kf1 {[%clk 0:01:28]}  Kf7 {[%clk 0:01:23]} 27. Qd5+ {[%clk 0:01:27]}  Qe6 {[%clk 0:01:21]} 28. Qxb7 {[%clk 0:01:27]}  Ke8 {[%clk 0:00:59]} 29. Bd4 {[%clk 0:01:10]}  Qh3+ {[%clk 0:00:56]} 30. Ke2 {[%clk 0:01:08]}  Kf7 {[%clk 0:00:49]} 31. Rg1 {[%clk 0:01:04]}  Ne6 {[%clk 0:00:47]} 32. Be3 {[%clk 0:00:57]}  Qh5+ {[%clk 0:00:44]} 33. Ke1 {[%clk 0:00:54]}  Rd8 {[%clk 0:00:42]} 34. Qb3 {[%clk 0:00:45]}  Qf5 {[%clk 0:00:42]} 35. Ke2 {[%clk 0:00:41]}  Qd3+ {[%clk 0:00:40]} 36. Kf3 {[%clk 0:00:39]}  Rd5 {[%clk 0:00:40]} 37. Rg3 {[%clk 0:00:36]}  Rg5 {[%clk 0:00:28]} 38. Qb7 {[%clk 0:00:19]}  Nc5 {[%clk 0:00:20]} 39. Qc6 {[%clk 0:00:17]}  Rxg3+ {[%clk 0:00:17]} 40. Kxg3 {[%clk 0:00:17]}  Ne4+ {[%clk 0:00:16]} 41. Kg2 {[%clk 0:00:17]}  Nf6 {[%clk 0:00:16]} 42. Bd4 {[%clk 0:00:15]}  Qg6+ {[%clk 0:00:11]} 43. Kf1 {[%clk 0:00:14]}  Qb1+ {[%clk 0:00:12]} 44. Kg2 {[%clk 0:00:15]}  Qxa2 {[%clk 0:00:12]} 45. Bxf6 {[%clk 0:00:14]}  gxf6 {[%clk 0:00:11]} 46. b4 {[%clk 0:00:15]}  Qe6 {[%clk 0:00:11]} 47. Qb7 {[%clk 0:00:14]}  f5 {[%clk 0:00:10]} 48. b5 {[%clk 0:00:13]}  axb5 {[%clk 0:00:07]} 49. Qxb5 {[%clk 0:00:14]}  Qe4+ {[%clk 0:00:08]} 50. Kf1 {[%clk 0:00:13]}  Kf6 {[%clk 0:00:07]} 51. Qb6+ {[%clk 0:00:13]}  Qe6 {[%clk 0:00:07]} 52. Qd4+ {[%clk 0:00:12]}  Kg6 {[%clk 0:00:08]} 53. c4 {[%clk 0:00:12]}  Qe4 {[%clk 0:00:08]} 54. Qxe4 {[%clk 0:00:11]}  fxe4 {[%clk 0:00:08]} 55. f3 {[%clk 0:00:09]}  e3 {[%clk 0:00:07]} 0-1


[Site "https://www.chess.com"]

[Event "Titled Tuesday Blitz December 20 Early 2022"]
[White "AldokhinIvan"]
[Black "MatthewG-p4p"]
[WhiteElo "2572"]
[BlackElo "2825"]
[Result "0-1"]
[Round "04"]
[TimeControl "180+2"]
[Date "2022.12.20"]
[WhiteClock "0:00:10"]
[BlackClock "0:01:33"]

1. e4 {[%clk 0:03:00]}  e6 {[%clk 0:02:59]} 2. d4 {[%clk 0:03:00]}  d5 {[%clk 0:03:00]} 3. Nc3 {[%clk 0:03:01]}  Bb4 {[%clk 0:03:00]} 4. Ne2 {[%clk 0:03:00]}  Nc6 {[%clk 0:03:00]} 5. exd5 {[%clk 0:02:52]}  exd5 {[%clk 0:03:00]} 6. a3 {[%clk 0:02:53]}  Ba5 {[%clk 0:03:00]} 7. Ng3 {[%clk 0:02:35]}  Nge7 {[%clk 0:02:51]} 8. Be3 {[%clk 0:02:29]}  O-O {[%clk 0:02:44]} 9. Bd3 {[%clk 0:02:29]}  f5 {[%clk 0:02:44]} 10. f4 {[%clk 0:02:09]}  Bb6 {[%clk 0:02:44]} 11. Nce2 {[%clk 0:02:05]}  Ng6 {[%clk 0:02:41]} 12. c3 {[%clk 0:01:49]}  Qe7 {[%clk 0:02:31]} 13. Bd2 {[%clk 0:01:46]}  Bd7 {[%clk 0:02:26]} 14. Qc2 {[%clk 0:01:42]}  Nh4 {[%clk 0:02:24]} 15. O-O {[%clk 0:01:33]}  Rae8 {[%clk 0:02:18]} 16. b4 {[%clk 0:01:13]}  Qf6 {[%clk 0:02:13]} 17. Nc1 {[%clk 0:00:56]}  Nxd4 {[%clk 0:02:11]} 18. cxd4 {[%clk 0:00:46]}  Bxd4+ {[%clk 0:02:01]} 19. Kh1 {[%clk 0:00:46]}  Bxa1 {[%clk 0:02:02]} 20. Nb3 {[%clk 0:00:45]}  Ba4 {[%clk 0:01:54]} 21. Rxa1 {[%clk 0:00:17]}  Bxb3 {[%clk 0:01:51]} 22. Qc1 {[%clk 0:00:16]}  Qf7 {[%clk 0:01:40]} 23. Rb1 {[%clk 0:00:15]}  Bc4 {[%clk 0:01:40]} 24. Bxc4 {[%clk 0:00:13]}  dxc4 {[%clk 0:01:41]} 25. Bc3 {[%clk 0:00:14]}  Qd5 {[%clk 0:01:41]} 26. Qb2 {[%clk 0:00:11]}  Rf7 {[%clk 0:01:36]} 27. h3 {[%clk 0:00:11]}  Rfe7 {[%clk 0:01:36]} 28. Nh5 {[%clk 0:00:10]}  Re2 {[%clk 0:01:33]} 29. Bxg7 {[%clk 0:00:10]}  Qxg2# {[%clk 0:01:33]} 0-1


[Site "https://www.chess.com"]

[Event "Titled Tuesday Blitz December 20 Early 2022"]
[White "Alex_Sahakyan2006"]
[Black "Brunstein, Sandrine"]
[BlackFideId "625574"]
[WhiteElo "2611"]
[BlackElo "1990"]
[Result "0-1"]
[Round "04"]
[TimeControl "180+2"]
[Date "2022.12.20"]
[WhiteClock "0:00:02"]
[BlackClock "0:00:04"]

1. d4 {[%clk 0:03:00]}  Nf6 {[%clk 0:02:59]} 2. Nf3 {[%clk 0:02:55]}  d5 {[%clk 0:02:59]} 3. c4 {[%clk 0:02:55]}  e6 {[%clk 0:02:59]} 4. Nc3 {[%clk 0:02:54]}  Be7 {[%clk 0:02:57]} 5. Bf4 {[%clk 0:02:54]}  O-O {[%clk 0:02:57]} 6. e3 {[%clk 0:02:55]}  c5 {[%clk 0:02:56]} 7. dxc5 {[%clk 0:02:53]}  Bxc5 {[%clk 0:02:54]} 8. a3 {[%clk 0:02:54]}  Nc6 {[%clk 0:02:54]} 9. cxd5 {[%clk 0:02:51]}  Nxd5 {[%clk 0:02:49]} 10. Nxd5 {[%clk 0:02:51]}  exd5 {[%clk 0:02:50]} 11. Bd3 {[%clk 0:02:51]}  d4 {[%clk 0:02:48]} 12. e4 {[%clk 0:02:49]}  Bg4 {[%clk 0:02:48]} 13. O-O {[%clk 0:02:48]}  Bb6 {[%clk 0:02:47]} 14. h3 {[%clk 0:02:47]}  Bh5 {[%clk 0:02:47]} 15. Bc4 {[%clk 0:02:31]}  Kh8 {[%clk 0:02:44]} 16. Qd3 {[%clk 0:02:28]}  Qf6 {[%clk 0:02:00]} 17. Bg3 {[%clk 0:02:11]}  Bxf3 {[%clk 0:01:41]} 18. Qxf3 {[%clk 0:02:10]}  Qxf3 {[%clk 0:01:42]} 19. gxf3 {[%clk 0:02:11]}  Rad8 {[%clk 0:01:42]} 20. Rfd1 {[%clk 0:02:07]}  f5 {[%clk 0:01:41]} 21. exf5 {[%clk 0:01:20]}  Rxf5 {[%clk 0:01:42]} 22. Rd3 {[%clk 0:01:20]}  Ne5 {[%clk 0:01:28]} 23. Bxe5 {[%clk 0:01:14]}  Rxe5 {[%clk 0:01:29]} 24. Rad1 {[%clk 0:01:11]}  g6 {[%clk 0:01:28]} 25. Kg2 {[%clk 0:01:09]}  Kg7 {[%clk 0:01:27]} 26. Rb3 {[%clk 0:01:08]}  Rg5+ {[%clk 0:01:05]} 27. Kf1 {[%clk 0:01:06]}  Re8 {[%clk 0:01:04]} 28. Bd3 {[%clk 0:01:02]}  Re7 {[%clk 0:01:01]} 29. Be4 {[%clk 0:01:00]}  Kh6 {[%clk 0:00:59]} 30. Ke2 {[%clk 0:00:49]}  Kh5 {[%clk 0:00:59]} 31. h4 {[%clk 0:00:48]}  Rf5 {[%clk 0:00:52]} 32. Kd3 {[%clk 0:00:41]}  Rf4 {[%clk 0:00:49]} 33. Rb5+ {[%clk 0:00:40]}  Kh6 {[%clk 0:00:45]} 34. h5 {[%clk 0:00:39]}  gxh5 {[%clk 0:00:43]} 35. a4 {[%clk 0:00:20]}  h4 {[%clk 0:00:25]} 36. a5 {[%clk 0:00:20]}  Bc7 {[%clk 0:00:26]} 37. Rg1 {[%clk 0:00:17]}  Be5 {[%clk 0:00:23]} 38. Rh1 {[%clk 0:00:14]}  Bf6 {[%clk 0:00:15]} 39. Bxb7 {[%clk 0:00:12]}  Re5 {[%clk 0:00:14]} 40. Rxe5 {[%clk 0:00:09]}  Bxe5 {[%clk 0:00:15]} 41. Be4 {[%clk 0:00:09]}  Bf6 {[%clk 0:00:14]} 42. a6 {[%clk 0:00:06]}  Kg7 {[%clk 0:00:13]} 43. b4 {[%clk 0:00:05]}  Bd8 {[%clk 0:00:07]} 44. Kxd4 {[%clk 0:00:04]}  Kf6 {[%clk 0:00:07]} 45. Ke3 {[%clk 0:00:01]}  Ke5 {[%clk 0:00:07]} 46. Rd1 {[%clk 0:00:01]}  Bb6+ {[%clk 0:00:06]} 47. Ke2 {[%clk 0:00:02]}  Bd4 {[%clk 0:00:04]} 0-1


[Site "https://www.chess.com"]

[Event "Titled Tuesday Blitz December 20 Early 2022"]
[White "Ankudinova_Yelena"]
[Black "santosalberto1987"]
[WhiteElo "2238"]
[BlackElo "2495"]
[Result "0-1"]
[Round "04"]
[TimeControl "180+2"]
[Date "2022.12.20"]
[WhiteClock "0:00:10"]
[BlackClock "0:00:12"]

1. c3 {[%clk 0:03:00]}  d5 {[%clk 0:02:59]} 2. g3 {[%clk 0:02:59]}  Nf6 {[%clk 0:02:58]} 3. Bg2 {[%clk 0:02:59]}  Bf5 {[%clk 0:02:57]} 4. d3 {[%clk 0:02:59]}  c6 {[%clk 0:02:58]} 5. Nf3 {[%clk 0:02:59]}  e6 {[%clk 0:02:58]} 6. O-O {[%clk 0:02:58]}  h6 {[%clk 0:02:58]} 7. a4 {[%clk 0:02:56]}  Be7 {[%clk 0:02:58]} 8. Nbd2 {[%clk 0:02:55]}  Nbd7 {[%clk 0:02:58]} 9. b4 {[%clk 0:02:53]}  O-O {[%clk 0:02:57]} 10. a5 {[%clk 0:02:52]}  a6 {[%clk 0:02:55]} 11. Nd4 {[%clk 0:02:47]}  Bh7 {[%clk 0:02:54]} 12. e4 {[%clk 0:02:46]}  c5 {[%clk 0:02:51]} 13. bxc5 {[%clk 0:02:44]}  Nxc5 {[%clk 0:02:52]} 14. N2b3 {[%clk 0:02:42]}  dxe4 {[%clk 0:02:47]} 15. Nxc5 {[%clk 0:02:35]}  Bxc5 {[%clk 0:02:48]} 16. Nb3 {[%clk 0:02:34]}  Ba7 {[%clk 0:02:42]} 17. d4 {[%clk 0:02:31]}  Rc8 {[%clk 0:02:41]} 18. Bb2 {[%clk 0:02:29]}  Nd5 {[%clk 0:02:33]} 19. Qd2 {[%clk 0:02:27]}  Qg5 {[%clk 0:02:28]} 20. Qxg5 {[%clk 0:02:23]}  hxg5 {[%clk 0:02:29]} 21. Rac1 {[%clk 0:02:15]}  Rc7 {[%clk 0:02:01]} 22. Ba3 {[%clk 0:02:11]}  Rfc8 {[%clk 0:02:01]} 23. Bc5 {[%clk 0:02:11]}  Bxc5 {[%clk 0:01:54]} 24. Nxc5 {[%clk 0:02:10]}  Rxc5 {[%clk 0:01:54]} 25. dxc5 {[%clk 0:02:10]}  Rxc5 {[%clk 0:01:55]} 26. c4 {[%clk 0:02:07]}  Nb4 {[%clk 0:01:29]} 27. Rfd1 {[%clk 0:02:00]}  Bg6 {[%clk 0:01:28]} 28. Rd8+ {[%clk 0:01:57]}  Kh7 {[%clk 0:01:28]} 29. Rd4 {[%clk 0:01:54]}  Nc6 {[%clk 0:01:24]} 30. Rd7 {[%clk 0:01:53]}  Nxa5 {[%clk 0:01:24]} 31. Re1 {[%clk 0:01:45]}  Rxc4 {[%clk 0:01:23]} 32. f3 {[%clk 0:01:38]}  exf3 {[%clk 0:01:14]} 33. Bxf3 {[%clk 0:01:38]}  b5 {[%clk 0:01:09]} 34. Ra1 {[%clk 0:01:31]}  Ra4 {[%clk 0:00:58]} 35. Rxa4 {[%clk 0:01:23]}  bxa4 {[%clk 0:00:59]} 36. Be2 {[%clk 0:01:21]}  a3 {[%clk 0:00:57]} 37. Rd2 {[%clk 0:01:20]}  Bb1 {[%clk 0:00:56]} 38. Bd3+ {[%clk 0:01:15]}  Bxd3 {[%clk 0:00:56]} 39. Rxd3 {[%clk 0:01:15]}  Nc4 {[%clk 0:00:54]} 40. Rd1 {[%clk 0:01:04]}  Kg6 {[%clk 0:00:49]} 41. Rc1 {[%clk 0:01:04]}  a2 {[%clk 0:00:48]} 42. Ra1 {[%clk 0:01:03]}  Kf5 {[%clk 0:00:29]} 43. Rxa2 {[%clk 0:01:03]}  Ne5 {[%clk 0:00:25]} 44. Rxa6 {[%clk 0:01:03]}  g4 {[%clk 0:00:25]} 45. Kf2 {[%clk 0:01:01]}  Nf3 {[%clk 0:00:24]} 46. Kg2 {[%clk 0:00:57]}  e5 {[%clk 0:00:22]} 47. h4 {[%clk 0:00:55]}  f6 {[%clk 0:00:18]} 48. Ra7 {[%clk 0:00:51]}  g6 {[%clk 0:00:18]} 49. Kf2 {[%clk 0:00:50]}  Nd4 {[%clk 0:00:17]} 50. Ke3 {[%clk 0:00:48]}  Ne6 {[%clk 0:00:16]} 51. Ra6 {[%clk 0:00:45]}  Nc5 {[%clk 0:00:15]} 52. Rc6 {[%clk 0:00:44]}  Ne4 {[%clk 0:00:15]} 53. Ra6 {[%clk 0:00:35]}  Nxg3 {[%clk 0:00:15]} 54. Kf2 {[%clk 0:00:35]}  Nh5 {[%clk 0:00:14]} 55. Kg2 {[%clk 0:00:33]}  Kf4 {[%clk 0:00:13]} 56. Ra5 {[%clk 0:00:30]}  e4 {[%clk 0:00:13]} 57. Ra4 {[%clk 0:00:30]}  g3 {[%clk 0:00:13]} 58. Rb4 {[%clk 0:00:27]}  f5 {[%clk 0:00:13]} 59. Ra4 {[%clk 0:00:26]}  Kg4 {[%clk 0:00:13]} 60. Ra6 {[%clk 0:00:22]}  Nf4+ {[%clk 0:00:13]} 61. Kg1 {[%clk 0:00:21]}  Kxh4 {[%clk 0:00:13]} 62. Ra8 {[%clk 0:00:19]}  Kg4 {[%clk 0:00:13]} 63. Ra2 {[%clk 0:00:18]}  Kf3 {[%clk 0:00:12]} 64. Ra3+ {[%clk 0:00:18]}  e3 {[%clk 0:00:13]} 65. Rb3 {[%clk 0:00:16]}  Ne2+ {[%clk 0:00:12]} 66. Kf1 {[%clk 0:00:11]}  g2+ {[%clk 0:00:12]} 67. Ke1 {[%clk 0:00:10]}  g1=Q# {[%clk 0:00:12]} 0-1


[Site "https://www.chess.com"]